[Event "Titled Tuesday Blitz January 10 Early 2023"]
[White "Gareyev, Timur"]
[Black "Janaszak, Dawid"]
[WhiteFideId "14200937"]
[BlackFideId "1119206"]
[WhiteElo "2617"]
[BlackElo "2316"]
[Result "1-0"]
[Round "02"]
[TimeControl "180+2"]
[Date "2023.01.10"]
[WhiteClock "0:00:12"]
[BlackClock "0:00:09"]

1. d4 {[%clk 0:02:58]}  d5 {[%clk 0:03:00]} 2. Nf3 {[%clk 0:02:57]}  c5 {[%clk 0:02:59]} 3. c4 {[%clk 0:02:57]}  e6 {[%clk 0:02:57]} 4. cxd5 {[%clk 0:02:55]}  exd5 {[%clk 0:02:58]} 5. g3 {[%clk 0:02:54]}  Nc6 {[%clk 0:02:58]} 6. Bg2 {[%clk 0:02:53]}  Nf6 {[%clk 0:02:59]} 7. O-O {[%clk 0:02:53]}  Be7 {[%clk 0:02:58]} 8. Be3 {[%clk 0:02:49]}  c4 {[%clk 0:02:53]} 9. Ne5 {[%clk 0:02:49]}  O-O {[%clk 0:02:49]} 10. b3 {[%clk 0:02:45]}  cxb3 {[%clk 0:02:47]} 11. Qxb3 {[%clk 0:02:40]}  Bd6 {[%clk 0:02:37]} 12. Qb2 {[%clk 0:02:22]}  Ng4 {[%clk 0:02:14]} 13. Nxg4 {[%clk 0:02:18]}  Bxg4 {[%clk 0:02:14]} 14. Nc3 {[%clk 0:02:19]}  Na5 {[%clk 0:02:07]} 15. Bxd5 {[%clk 0:02:17]}  Rc8 {[%clk 0:02:01]} 16. Rfc1 {[%clk 0:01:58]}  Nc4 {[%clk 0:01:54]} 17. Qb3 {[%clk 0:01:46]}  Nxe3 {[%clk 0:01:50]} 18. fxe3 {[%clk 0:01:47]}  Qe7 {[%clk 0:01:39]} 19. Kf2 {[%clk 0:01:42]}  Ba3 {[%clk 0:01:26]} 20. Rc2 {[%clk 0:01:39]}  b6 {[%clk 0:01:20]} 21. Rf1 {[%clk 0:01:31]}  Kh8 {[%clk 0:01:15]} 22. Nb5 {[%clk 0:01:08]}  Bd6 {[%clk 0:01:05]} 23. Rxc8 {[%clk 0:01:01]}  Rxc8 {[%clk 0:01:01]} 24. Bf3 {[%clk 0:00:55]}  Bh3 {[%clk 0:00:59]} 25. Rd1 {[%clk 0:00:47]}  Bb8 {[%clk 0:00:55]} 26. Nc3 {[%clk 0:00:45]}  Re8 {[%clk 0:00:53]} 27. Nd5 {[%clk 0:00:45]}  Qd6 {[%clk 0:00:51]} 28. Nf4 {[%clk 0:00:45]}  Be6 {[%clk 0:00:47]} 29. Nxe6 {[%clk 0:00:44]}  fxe6 {[%clk 0:00:45]} 30. Be4 {[%clk 0:00:39]}  e5 {[%clk 0:00:40]} 31. d5 {[%clk 0:00:38]}  Qh6 {[%clk 0:00:38]} 32. Kg2 {[%clk 0:00:36]}  Bd6 {[%clk 0:00:38]} 33. Qd3 {[%clk 0:00:35]}  Rf8 {[%clk 0:00:35]} 34. a4 {[%clk 0:00:30]}  a5 {[%clk 0:00:34]} 35. Bf3 {[%clk 0:00:29]}  Qg5 {[%clk 0:00:29]} 36. Qe4 {[%clk 0:00:28]}  h5 {[%clk 0:00:27]} 37. h4 {[%clk 0:00:27]}  Qh6 {[%clk 0:00:23]} 38. Rc1 {[%clk 0:00:27]}  Bc5 {[%clk 0:00:23]} 39. Qxe5 {[%clk 0:00:26]}  Bd6 {[%clk 0:00:16]} 40. Qxh5 {[%clk 0:00:24]}  Qxh5 {[%clk 0:00:13]} 41. Bxh5 {[%clk 0:00:25]}  Bc5 {[%clk 0:00:14]} 42. Rc3 {[%clk 0:00:23]}  Rd8 {[%clk 0:00:13]} 43. e4 {[%clk 0:00:22]}  Kh7 {[%clk 0:00:12]} 44. Bf3 {[%clk 0:00:20]}  Re8 {[%clk 0:00:11]} 45. Rd3 {[%clk 0:00:20]}  Bd6 {[%clk 0:00:10]} 46. Rc3 {[%clk 0:00:18]}  Re7 {[%clk 0:00:10]} 47. Rc6 {[%clk 0:00:18]}  Bc5 {[%clk 0:00:11]} 48. d6 {[%clk 0:00:16]}  Rd7 {[%clk 0:00:10]} 49. e5 {[%clk 0:00:16]}  Bd4 {[%clk 0:00:09]} 50. Bg4 {[%clk 0:00:15]}  Rf7 {[%clk 0:00:08]} 51. e6 {[%clk 0:00:12]}  Rf2+ {[%clk 0:00:09]} 52. Kh3 {[%clk 0:00:12]}  Be5 {[%clk 0:00:09]} 53. e7 {[%clk 0:00:12]} 1-0


[Site "https://www.chess.com"]

[Event "Titled Tuesday Blitz January 10 Early 2023"]
[White "Nigmatov, Ortik"]
[Black "Derjabin, Ilja"]
[WhiteFideId "14202131"]
[BlackFideId "14104768"]
[WhiteElo "2438"]
[BlackElo "2333"]
[Result "0-1"]
[Round "02"]
[TimeControl "180+2"]
[Date "2023.01.10"]
[WhiteClock "0:00:08"]
[BlackClock "0:00:12"]

1. d4 {[%clk 0:02:58]}  Nf6 {[%clk 0:02:59]} 2. Nf3 {[%clk 0:02:57]}  c5 {[%clk 0:02:58]} 3. d5 {[%clk 0:02:56]}  b5 {[%clk 0:02:58]} 4. e4 {[%clk 0:02:53]}  Nxe4 {[%clk 0:02:58]} 5. a4 {[%clk 0:02:36]}  b4 {[%clk 0:02:48]} 6. Bc4 {[%clk 0:02:32]}  Nd6 {[%clk 0:02:41]} 7. Be2 {[%clk 0:02:31]}  g6 {[%clk 0:02:38]} 8. h4 {[%clk 0:02:26]}  h5 {[%clk 0:02:32]} 9. Ne5 {[%clk 0:02:22]}  Bg7 {[%clk 0:02:28]} 10. Bf4 {[%clk 0:02:21]}  Ba6 {[%clk 0:02:22]} 11. Bxa6 {[%clk 0:02:17]}  Nxa6 {[%clk 0:02:21]} 12. Nd2 {[%clk 0:02:16]}  Nc7 {[%clk 0:01:26]} 13. Qf3 {[%clk 0:02:13]}  O-O {[%clk 0:01:14]} 14. O-O-O {[%clk 0:02:01]}  e6 {[%clk 0:01:07]} 15. dxe6 {[%clk 0:01:18]}  Nxe6 {[%clk 0:01:05]} 16. Bg3 {[%clk 0:00:57]}  Nf5 {[%clk 0:01:04]} 17. Ndc4 {[%clk 0:00:56]}  Ned4 {[%clk 0:01:01]} 18. Qd5 {[%clk 0:00:53]}  Nxg3 {[%clk 0:00:56]} 19. fxg3 {[%clk 0:00:53]}  d6 {[%clk 0:00:48]} 20. Nxg6 {[%clk 0:00:50]}  Qf6 {[%clk 0:00:42]} 21. Nxf8 {[%clk 0:00:48]}  Ne2+ {[%clk 0:00:34]} 22. Kb1 {[%clk 0:00:48]}  Nc3+ {[%clk 0:00:29]} 23. bxc3 {[%clk 0:00:41]}  Qxc3 {[%clk 0:00:30]} 24. Kc1 {[%clk 0:00:20]}  Bh6+ {[%clk 0:00:30]} 25. Kb1 {[%clk 0:00:16]}  Bg7 {[%clk 0:00:26]} 26. Ne5 {[%clk 0:00:07]}  Bxe5 {[%clk 0:00:22]} 27. Qa2 {[%clk 0:00:07]}  Rxf8 {[%clk 0:00:20]} 28. Rd3 {[%clk 0:00:08]}  b3 {[%clk 0:00:16]} 29. cxb3 {[%clk 0:00:02]}  Qxd3+ {[%clk 0:00:17]} 30. Qc2 {[%clk 0:00:03]}  Qxc2+ {[%clk 0:00:16]} 31. Kxc2 {[%clk 0:00:04]}  Bxg3 {[%clk 0:00:17]} 32. Rh3 {[%clk 0:00:04]}  Be5 {[%clk 0:00:16]} 33. Kd3 {[%clk 0:00:05]}  f5 {[%clk 0:00:17]} 34. Kc4 {[%clk 0:00:06]}  f4 {[%clk 0:00:17]} 35. Kd5 {[%clk 0:00:07]}  Rf6 {[%clk 0:00:17]} 36. Rf3 {[%clk 0:00:06]}  Rg6 {[%clk 0:00:18]} 37. Rf2 {[%clk 0:00:07]}  Rg4 {[%clk 0:00:18]} 38. Ke6 {[%clk 0:00:06]}  Kg7 {[%clk 0:00:18]} 39. b4 {[%clk 0:00:07]}  cxb4 {[%clk 0:00:18]} 40. Kf5 {[%clk 0:00:07]}  b3 {[%clk 0:00:17]} 41. Rf3 {[%clk 0:00:07]}  Rg6 {[%clk 0:00:12]} 42. Rxb3 {[%clk 0:00:06]}  Rf6+ {[%clk 0:00:13]} 43. Ke4 {[%clk 0:00:07]}  Rg6 {[%clk 0:00:10]} 44. Kf5 {[%clk 0:00:06]}  Rxg2 {[%clk 0:00:09]} 45. Rb7+ {[%clk 0:00:07]}  Kh6 {[%clk 0:00:10]} 46. Rxa7 {[%clk 0:00:07]}  f3 {[%clk 0:00:09]} 47. Rf7 {[%clk 0:00:06]}  f2 {[%clk 0:00:09]} 48. Ke4 {[%clk 0:00:07]}  Rg4+ {[%clk 0:00:09]} 49. Ke3 {[%clk 0:00:07]}  Rxa4 {[%clk 0:00:07]} 50. Ke2 {[%clk 0:00:03]}  Rf4 {[%clk 0:00:07]} 51. Rxf4 {[%clk 0:00:03]}  Bxf4 {[%clk 0:00:08]} 52. Kxf2 {[%clk 0:00:04]}  Kg6 {[%clk 0:00:08]} 53. Kf3 {[%clk 0:00:04]}  Kf5 {[%clk 0:00:09]} 54. Kg2 {[%clk 0:00:05]}  Kg4 {[%clk 0:00:09]} 55. Kf1 {[%clk 0:00:06]}  Kxh4 {[%clk 0:00:10]} 56. Ke2 {[%clk 0:00:07]}  Kg4 {[%clk 0:00:11]} 57. Kd3 {[%clk 0:00:08]}  h4 {[%clk 0:00:12]} 0-1


[Site "https://www.chess.com"]

[Event "Titled Tuesday Blitz January 10 Early 2023"]
[White "Musovic, Armin"]
[Black "Harshavardhan G B"]
[WhiteFideId "939935"]
[BlackFideId "25059009"]
[WhiteElo "2261"]
[BlackElo "2408"]
[Result "0-1"]
[Round "02"]
[TimeControl "180+2"]
[Date "2023.01.10"]
[WhiteClock "0:00:03"]
[BlackClock "0:00:15"]

1. a3 {[%clk 0:03:00]}  e5 {[%clk 0:02:58]} 2. d4 {[%clk 0:03:00]}  exd4 {[%clk 0:02:58]} 3. Qxd4 {[%clk 0:03:01]}  Nc6 {[%clk 0:02:57]} 4. Qa4 {[%clk 0:03:01]}  d5 {[%clk 0:02:55]} 5. Nc3 {[%clk 0:02:58]}  Nf6 {[%clk 0:02:54]} 6. Bg5 {[%clk 0:02:57]}  Be7 {[%clk 0:02:51]} 7. O-O-O {[%clk 0:02:58]}  Be6 {[%clk 0:02:49]} 8. e4 {[%clk 0:02:47]}  Nxe4 {[%clk 0:02:19]} 9. Bxe7 {[%clk 0:02:48]}  Qxe7 {[%clk 0:02:20]} 10. Nxe4 {[%clk 0:02:47]}  dxe4 {[%clk 0:02:19]} 11. Qxe4 {[%clk 0:02:47]}  O-O {[%clk 0:02:13]} 12. Nf3 {[%clk 0:02:43]}  Qf6 {[%clk 0:01:59]} 13. Bd3 {[%clk 0:02:28]}  g6 {[%clk 0:01:56]} 14. h4 {[%clk 0:02:15]}  h5 {[%clk 0:01:51]} 15. Qe3 {[%clk 0:02:00]}  Rfe8 {[%clk 0:01:50]} 16. Rhe1 {[%clk 0:01:53]}  Kg7 {[%clk 0:01:46]} 17. Qg5 {[%clk 0:01:46]}  Bg4 {[%clk 0:01:43]} 18. Qxf6+ {[%clk 0:01:42]}  Kxf6 {[%clk 0:01:43]} 19. Be4 {[%clk 0:01:42]}  Nd8 {[%clk 0:01:34]} 20. Re3 {[%clk 0:01:35]}  Kg7 {[%clk 0:01:24]} 21. Rde1 {[%clk 0:01:16]}  c6 {[%clk 0:01:17]} 22. Bd3 {[%clk 0:01:07]}  Rxe3 {[%clk 0:01:14]} 23. Rxe3 {[%clk 0:01:08]}  Ne6 {[%clk 0:01:14]} 24. Ne5 {[%clk 0:01:08]}  Nf4 {[%clk 0:01:13]} 25. Bf1 {[%clk 0:01:02]}  Be6 {[%clk 0:01:11]} 26. c4 {[%clk 0:00:57]}  Bf5 {[%clk 0:01:03]} 27. g3 {[%clk 0:00:55]}  Ne6 {[%clk 0:01:03]} 28. Bd3 {[%clk 0:00:53]}  Bxd3 {[%clk 0:00:52]} 29. Rxd3 {[%clk 0:00:53]}  Rd8 {[%clk 0:00:51]} 30. Rxd8 {[%clk 0:00:51]}  Nxd8 {[%clk 0:00:52]} 31. Nd7 {[%clk 0:00:43]}  Ne6 {[%clk 0:00:51]} 32. Kd2 {[%clk 0:00:41]}  f6 {[%clk 0:00:47]} 33. b4 {[%clk 0:00:30]}  Kf7 {[%clk 0:00:46]} 34. b5 {[%clk 0:00:23]}  cxb5 {[%clk 0:00:38]} 35. cxb5 {[%clk 0:00:24]}  Ke7 {[%clk 0:00:38]} 36. Nb8 {[%clk 0:00:15]}  Kd6 {[%clk 0:00:37]} 37. Kc3 {[%clk 0:00:09]}  Kc7 {[%clk 0:00:33]} 38. Kc4 {[%clk 0:00:09]}  Kxb8 {[%clk 0:00:15]} 39. Kd5 {[%clk 0:00:10]}  Nc7+ {[%clk 0:00:15]} 40. Kc5 {[%clk 0:00:11]}  Kc8 {[%clk 0:00:15]} 41. a4 {[%clk 0:00:05]}  Kd7 {[%clk 0:00:14]} 42. a5 {[%clk 0:00:05]}  Ne6+ {[%clk 0:00:13]} 43. Kd5 {[%clk 0:00:05]}  b6 {[%clk 0:00:13]} 44. axb6 {[%clk 0:00:04]}  axb6 {[%clk 0:00:14]} 45. f4 {[%clk 0:00:04]}  Nc7+ {[%clk 0:00:14]} 46. Kc4 {[%clk 0:00:05]}  f5 {[%clk 0:00:15]} 47. Kd4 {[%clk 0:00:04]}  Kd6 {[%clk 0:00:15]} 48. Kc4 {[%clk 0:00:04]}  Nd5 {[%clk 0:00:15]} 49. Kd4 {[%clk 0:00:04]}  Ne7 {[%clk 0:00:15]} 50. Kc4 {[%clk 0:00:04]}  Ke6 {[%clk 0:00:15]} 51. Kc3 {[%clk 0:00:04]}  Nd5+ {[%clk 0:00:15]} 52. Kc4 {[%clk 0:00:03]}  Nc7 {[%clk 0:00:15]} 0-1


[Site "https://www.chess.com"]

[Event "Titled Tuesday Blitz January 10 Early 2023"]
[White "Bagrationi, Alexander"]
[Black "Preotu, Razvan"]
[WhiteFideId "14104954"]
[BlackFideId "2613280"]
[WhiteElo "2454"]
[BlackElo "2475"]
[Result "0-1"]
[Round "02"]
[TimeControl "180+2"]
[Date "2023.01.10"]
[WhiteClock "0:00:08"]
[BlackClock "0:00:11"]

1. e4 {[%clk 0:02:51]}  c5 {[%clk 0:03:00]} 2. Be2 {[%clk 0:02:39]}  Nc6 {[%clk 0:02:32]} 3. f4 {[%clk 0:02:33]}  d5 {[%clk 0:02:32]} 4. d3 {[%clk 0:01:41]}  dxe4 {[%clk 0:01:56]} 5. dxe4 {[%clk 0:01:40]}  Qxd1+ {[%clk 0:01:57]} 6. Bxd1 {[%clk 0:01:40]}  b6 {[%clk 0:01:58]} 7. c3 {[%clk 0:01:39]}  Ba6 {[%clk 0:01:58]} 8. Ba4 {[%clk 0:01:35]}  Kd7 {[%clk 0:01:58]} 9. Na3 {[%clk 0:01:33]}  Kc7 {[%clk 0:01:55]} 10. Nf3 {[%clk 0:01:31]}  Nf6 {[%clk 0:01:27]} 11. Bxc6 {[%clk 0:01:25]}  Kxc6 {[%clk 0:01:28]} 12. Ne5+ {[%clk 0:01:25]}  Kb7 {[%clk 0:01:28]} 13. Nxf7 {[%clk 0:01:26]}  Rg8 {[%clk 0:01:29]} 14. e5 {[%clk 0:01:18]}  Ne4 {[%clk 0:01:29]} 15. Be3 {[%clk 0:01:15]}  Kc7 {[%clk 0:00:44]} 16. O-O-O {[%clk 0:00:49]}  e6 {[%clk 0:00:45]} 17. Rhe1 {[%clk 0:00:35]}  c4 {[%clk 0:00:46]} 18. Bxb6+ {[%clk 0:00:28]}  axb6 {[%clk 0:00:46]} 19. Rxe4 {[%clk 0:00:29]}  Bxa3 {[%clk 0:00:47]} 20. bxa3 {[%clk 0:00:29]}  b5 {[%clk 0:00:41]} 21. Red4 {[%clk 0:00:25]}  Raf8 {[%clk 0:00:26]} 22. Rd7+ {[%clk 0:00:24]}  Kb8 {[%clk 0:00:27]} 23. R1d6 {[%clk 0:00:16]}  Bc8 {[%clk 0:00:22]} 24. Re7 {[%clk 0:00:16]}  h6 {[%clk 0:00:13]} 25. Rb6+ {[%clk 0:00:16]}  Ka8 {[%clk 0:00:14]} 26. g3 {[%clk 0:00:16]}  g5 {[%clk 0:00:14]} 27. Nxh6 {[%clk 0:00:10]}  Rh8 {[%clk 0:00:14]} 28. fxg5 {[%clk 0:00:10]}  Rf1+ {[%clk 0:00:10]} 29. Kd2 {[%clk 0:00:10]}  Rd8+ {[%clk 0:00:11]} 30. Ke3 {[%clk 0:00:10]}  Rd3+ {[%clk 0:00:06]} 31. Ke4 {[%clk 0:00:10]}  Rxc3 {[%clk 0:00:05]} 32. Re8 {[%clk 0:00:10]}  Ka7 {[%clk 0:00:05]} 33. Rxb5 {[%clk 0:00:09]}  Bb7+ {[%clk 0:00:05]} 34. Kd4 {[%clk 0:00:08]}  Rcc1 {[%clk 0:00:02]} 35. Re7 {[%clk 0:00:08]}  Rfd1+ {[%clk 0:00:02]} 36. Kc5 {[%clk 0:00:08]}  Rd5+ {[%clk 0:00:02]} 37. Kb4 {[%clk 0:00:06]}  Rb1+ {[%clk 0:00:03]} 38. Kxc4 {[%clk 0:00:07]}  Rbxb5 {[%clk 0:00:04]} 39. Nf7 {[%clk 0:00:06]}  Rdc5+ {[%clk 0:00:03]} 40. Kd4 {[%clk 0:00:07]}  Rc1 {[%clk 0:00:02]} 41. h4 {[%clk 0:00:07]}  Rd1+ {[%clk 0:00:03]} 42. Ke3 {[%clk 0:00:07]}  Rb2 {[%clk 0:00:03]} 43. Kf4 {[%clk 0:00:07]}  Rf2+ {[%clk 0:00:03]} 44. Kg4 {[%clk 0:00:07]}  Kb6 {[%clk 0:00:04]} 45. Rxe6+ {[%clk 0:00:07]}  Kc5 {[%clk 0:00:04]} 46. Rf6 {[%clk 0:00:08]}  Bc8+ {[%clk 0:00:04]} 47. e6 {[%clk 0:00:07]}  Re2 {[%clk 0:00:04]} 48. g6 {[%clk 0:00:06]}  Bxe6+ {[%clk 0:00:04]} 49. Kg5 {[%clk 0:00:06]}  Rg1 {[%clk 0:00:03]} 50. Kh6 {[%clk 0:00:04]}  Rxg3 {[%clk 0:00:03]} 51. h5 {[%clk 0:00:05]}  Re4 {[%clk 0:00:02]} 52. Ng5 {[%clk 0:00:05]}  Bd5 {[%clk 0:00:02]} 53. Rf5 {[%clk 0:00:05]}  Rh4 {[%clk 0:00:03]} 54. g7 {[%clk 0:00:05]}  Kd6 {[%clk 0:00:03]} 55. Rxd5+ {[%clk 0:00:05]}  Kxd5 {[%clk 0:00:04]} 56. g8=Q+ {[%clk 0:00:06]}  Ke5 {[%clk 0:00:05]} 57. Qe6+ {[%clk 0:00:06]}  Kf4 {[%clk 0:00:06]} 58. Qf6+ {[%clk 0:00:06]}  Kg4 {[%clk 0:00:06]} 59. Kg6 {[%clk 0:00:07]}  Rxh5 {[%clk 0:00:06]} 60. Qf5+ {[%clk 0:00:07]}  Kh4 {[%clk 0:00:07]} 61. Qf4+ {[%clk 0:00:07]}  Rg4 {[%clk 0:00:08]} 62. Qf5 {[%clk 0:00:06]}  Rhxg5+ {[%clk 0:00:08]} 63. Kf6 {[%clk 0:00:05]}  Rxf5+ {[%clk 0:00:09]} 64. Kxf5 {[%clk 0:00:06]}  Ra4 {[%clk 0:00:09]} 65. Ke5 {[%clk 0:00:07]}  Rxa3 {[%clk 0:00:10]} 66. Kd5 {[%clk 0:00:08]}  Rxa2 {[%clk 0:00:11]} 67. Kc5 {[%clk 0:00:08]}  Rd2 {[%clk 0:00:11]} 0-1


[Site "https://www.chess.com"]

[Event "Titled Tuesday Blitz January 10 Early 2023"]
[White "Kuzmin, Roman"]
[Black "Cherniaiev, Tykhon"]
[WhiteFideId "44134932"]
[BlackFideId "14182360"]
[WhiteElo "2198"]
[BlackElo "2330"]
[Result "1-0"]
[Round "02"]
[TimeControl "180+2"]
[Date "2023.01.10"]
[WhiteClock "0:00:32"]
[BlackClock "0:00:02"]

1. e4 {[%clk 0:03:00]}  e5 {[%clk 0:02:59]} 2. Nf3 {[%clk 0:02:59]}  Nc6 {[%clk 0:02:59]} 3. Bb5 {[%clk 0:02:59]}  Nf6 {[%clk 0:02:59]} 4. d3 {[%clk 0:02:56]}  Bc5 {[%clk 0:02:58]} 5. Bxc6 {[%clk 0:02:56]}  dxc6 {[%clk 0:02:58]} 6. Nbd2 {[%clk 0:02:54]}  Bd6 {[%clk 0:02:57]} 7. Nc4 {[%clk 0:02:54]}  Qe7 {[%clk 0:02:54]} 8. Bd2 {[%clk 0:02:52]}  Bg4 {[%clk 0:02:53]} 9. h3 {[%clk 0:02:48]}  Bxf3 {[%clk 0:02:50]} 10. Qxf3 {[%clk 0:02:48]}  Nd7 {[%clk 0:02:46]} 11. Qg3 {[%clk 0:02:42]}  Rg8 {[%clk 0:02:42]} 12. O-O-O {[%clk 0:02:34]}  f6 {[%clk 0:02:30]} 13. f4 {[%clk 0:02:28]}  O-O-O {[%clk 0:02:23]} 14. Kb1 {[%clk 0:02:25]}  Kb8 {[%clk 0:02:07]} 15. fxe5 {[%clk 0:02:20]}  Nxe5 {[%clk 0:02:03]} 16. Nxd6 {[%clk 0:02:19]}  cxd6 {[%clk 0:02:03]} 17. Rhf1 {[%clk 0:02:13]}  Ka8 {[%clk 0:02:02]} 18. Bf4 {[%clk 0:02:06]}  Ng6 {[%clk 0:01:54]} 19. Be3 {[%clk 0:02:01]}  d5 {[%clk 0:01:37]} 20. Bg1 {[%clk 0:01:50]}  dxe4 {[%clk 0:01:00]} 21. Rde1 {[%clk 0:01:50]}  f5 {[%clk 0:00:52]} 22. Rxf5 {[%clk 0:01:44]}  exd3 {[%clk 0:00:17]} 23. Qf2 {[%clk 0:01:09]}  Qxe1+ {[%clk 0:00:15]} 24. Qxe1 {[%clk 0:01:07]}  d2 {[%clk 0:00:15]} 25. Qd1 {[%clk 0:01:07]}  Rge8 {[%clk 0:00:15]} 26. Rf1 {[%clk 0:01:06]}  Nf4 {[%clk 0:00:09]} 27. b3 {[%clk 0:00:57]}  Nxg2 {[%clk 0:00:07]} 28. Kb2 {[%clk 0:00:49]}  a6 {[%clk 0:00:03]} 29. Bb6 {[%clk 0:00:35]}  Rd7 {[%clk 0:00:02]} 30. Rf2 {[%clk 0:00:32]} 1-0


[Site "https://www.chess.com"]

[Event "Titled Tuesday Blitz January 10 Early 2023"]
[White "Namitbir Singh Walia"]
[Black "Talibov, Shiroghlan"]
[WhiteFideId "35071068"]
[BlackFideId "13429078"]
[WhiteElo "2364"]
[BlackElo "2359"]
[Result "0-1"]
[Round "02"]
[TimeControl "180+2"]
[Date "2023.01.10"]
[WhiteClock "0:00:04"]
[BlackClock "0:01:07"]

1. e4 {[%clk 0:02:55]}  Nf6 {[%clk 0:02:54]} 2. e5 {[%clk 0:02:52]}  Nd5 {[%clk 0:02:52]} 3. d4 {[%clk 0:02:45]}  d6 {[%clk 0:02:52]} 4. exd6 {[%clk 0:02:44]}  cxd6 {[%clk 0:02:53]} 5. c4 {[%clk 0:02:44]}  Nb6 {[%clk 0:02:53]} 6. Nc3 {[%clk 0:02:44]}  g6 {[%clk 0:02:53]} 7. h3 {[%clk 0:02:41]}  Bg7 {[%clk 0:02:53]} 8. Nf3 {[%clk 0:02:42]}  O-O {[%clk 0:02:53]} 9. Be2 {[%clk 0:02:31]}  Bf5 {[%clk 0:02:52]} 10. O-O {[%clk 0:02:30]}  Nc6 {[%clk 0:02:50]} 11. b3 {[%clk 0:02:28]}  d5 {[%clk 0:02:48]} 12. c5 {[%clk 0:02:26]}  Nc8 {[%clk 0:02:48]} 13. Be3 {[%clk 0:02:18]}  e6 {[%clk 0:02:48]} 14. a3 {[%clk 0:02:14]}  N8e7 {[%clk 0:02:46]} 15. b4 {[%clk 0:02:12]}  a6 {[%clk 0:02:45]} 16. Qb3 {[%clk 0:02:03]}  Be4 {[%clk 0:02:43]} 17. Rfd1 {[%clk 0:02:02]}  Bxf3 {[%clk 0:02:42]} 18. Bxf3 {[%clk 0:02:03]}  Nf5 {[%clk 0:02:42]} 19. Ne2 {[%clk 0:02:01]}  Qh4 {[%clk 0:02:41]} 20. Bg4 {[%clk 0:01:46]}  Nxe3 {[%clk 0:02:18]} 21. Qxe3 {[%clk 0:01:47]}  h5 {[%clk 0:02:15]} 22. g3 {[%clk 0:01:29]}  Qf6 {[%clk 0:02:13]} 23. Bf3 {[%clk 0:01:29]}  Rad8 {[%clk 0:02:12]} 24. Bg2 {[%clk 0:01:27]}  e5 {[%clk 0:02:00]} 25. dxe5 {[%clk 0:01:24]}  Nxe5 {[%clk 0:02:01]} 26. Qb3 {[%clk 0:00:52]}  Rfe8 {[%clk 0:01:25]} 27. Bxd5 {[%clk 0:00:34]}  h4 {[%clk 0:01:18]} 28. Nf4 {[%clk 0:00:30]}  hxg3 {[%clk 0:01:17]} 29. fxg3 {[%clk 0:00:31]}  Qf5 {[%clk 0:01:13]} 30. Re1 {[%clk 0:00:21]}  g5 {[%clk 0:01:12]} 31. Nh5 {[%clk 0:00:08]}  Rxd5 {[%clk 0:01:09]} 32. Rf1 {[%clk 0:00:04]}  Qd3 {[%clk 0:01:07]} 0-1


[Site "https://www.chess.com"]

[Event "Titled Tuesday Blitz January 10 Early 2023"]
[White "Bykhovsky, Anatoly"]
[Black "Jovic, Stanoje"]
[WhiteFideId "2806991"]
[BlackFideId "905020"]
[WhiteElo "2496"]
[BlackElo "2075"]
[Result "0-1"]
[Round "02"]
[TimeControl "180+2"]
[Date "2023.01.10"]
[WhiteClock "0:00:07"]
[BlackClock "0:00:19"]

1. d4 {[%clk 0:02:58]}  Nf6 {[%clk 0:02:56]} 2. Nf3 {[%clk 0:02:57]}  e6 {[%clk 0:02:55]} 3. c4 {[%clk 0:02:57]}  b6 {[%clk 0:02:53]} 4. g3 {[%clk 0:02:57]}  Ba6 {[%clk 0:02:52]} 5. Qc2 {[%clk 0:02:56]}  Bb4+ {[%clk 0:02:50]} 6. Bd2 {[%clk 0:02:56]}  Be7 {[%clk 0:02:49]} 7. e4 {[%clk 0:02:56]}  d5 {[%clk 0:02:46]} 8. cxd5 {[%clk 0:02:56]}  Bxf1 {[%clk 0:02:45]} 9. Kxf1 {[%clk 0:02:57]}  exd5 {[%clk 0:02:46]} 10. e5 {[%clk 0:02:58]}  Ne4 {[%clk 0:02:46]} 11. Nc3 {[%clk 0:02:59]}  f5 {[%clk 0:02:44]} 12. exf6 {[%clk 0:02:52]}  Nxf6 {[%clk 0:02:39]} 13. Re1 {[%clk 0:02:51]}  O-O {[%clk 0:02:37]} 14. Ng5 {[%clk 0:02:52]}  Qd7 {[%clk 0:02:25]} 15. Rxe7 {[%clk 0:01:54]}  Qxe7 {[%clk 0:02:16]} 16. Nxd5 {[%clk 0:01:55]}  Qd7 {[%clk 0:02:08]} 17. Nxf6+ {[%clk 0:01:49]}  gxf6 {[%clk 0:02:07]} 18. Qc4+ {[%clk 0:01:50]}  Kh8 {[%clk 0:01:57]} 19. Ne6 {[%clk 0:01:50]}  Rf7 {[%clk 0:01:50]} 20. Bc3 {[%clk 0:01:42]}  b5 {[%clk 0:01:41]} 21. Qb3 {[%clk 0:01:38]}  b4 {[%clk 0:01:41]} 22. Bxb4 {[%clk 0:00:56]}  Nc6 {[%clk 0:01:38]} 23. Nc5 {[%clk 0:00:53]}  Qh3+ {[%clk 0:01:36]} 24. Ke1 {[%clk 0:00:46]}  Re7+ {[%clk 0:01:31]} 25. Kd2 {[%clk 0:00:43]}  Nxd4 {[%clk 0:01:29]} 26. Qc4 {[%clk 0:00:42]}  Rd8 {[%clk 0:01:20]} 27. Kc1 {[%clk 0:00:41]}  Qg2 {[%clk 0:01:13]} 28. Rd1 {[%clk 0:00:40]}  Qxf2 {[%clk 0:01:09]} 29. Kb1 {[%clk 0:00:25]}  Qf5+ {[%clk 0:01:06]} 30. Nd3 {[%clk 0:00:19]}  Red7 {[%clk 0:00:58]} 31. g4 {[%clk 0:00:16]}  Qg6 {[%clk 0:00:54]} 32. h4 {[%clk 0:00:16]}  Nf3 {[%clk 0:00:42]} 33. h5 {[%clk 0:00:15]}  Qg8 {[%clk 0:00:37]} 34. Qe4 {[%clk 0:00:13]}  Qd5 {[%clk 0:00:33]} 35. Qxd5 {[%clk 0:00:14]}  Rxd5 {[%clk 0:00:33]} 36. Kc2 {[%clk 0:00:15]}  Nh2 {[%clk 0:00:27]} 37. g5 {[%clk 0:00:11]}  fxg5 {[%clk 0:00:26]} 38. Bc3+ {[%clk 0:00:11]}  Kg8 {[%clk 0:00:26]} 39. Rh1 {[%clk 0:00:08]}  Rxd3 {[%clk 0:00:25]} 40. Rxh2 {[%clk 0:00:08]}  g4 {[%clk 0:00:25]} 41. Re2 {[%clk 0:00:08]}  R8d7 {[%clk 0:00:23]} 42. Re4 {[%clk 0:00:08]}  g3 {[%clk 0:00:22]} 43. Rg4+ {[%clk 0:00:08]}  Kf7 {[%clk 0:00:22]} 44. Be5 {[%clk 0:00:09]}  Ke6 {[%clk 0:00:21]} 45. Bxg3 {[%clk 0:00:09]}  Rd2+ {[%clk 0:00:21]} 46. Kc3 {[%clk 0:00:10]}  R7d3+ {[%clk 0:00:21]} 47. Kc4 {[%clk 0:00:10]}  Rf3 {[%clk 0:00:21]} 48. b4 {[%clk 0:00:07]}  Rg2 {[%clk 0:00:19]} 49. Re4+ {[%clk 0:00:06]}  Kf5 {[%clk 0:00:19]} 50. Re5+ {[%clk 0:00:07]}  Kf6 {[%clk 0:00:19]} 0-1


[Site "https://www.chess.com"]